[Event "Dam-SM i Blixtschack"]
[Site "Goteborgs Schackcentrum, Vegatan 20, Gothenburg, Sweden"]
[Date "2024.12.07"]
[Round "2.5"]
[White "Svensson, Paula"]
[Black "Mironova, Olga K"]
[Result "1-0"]
[TimeControl "3 minutes + 2 seconds per move from move one"]
[WhiteFideId "1715186"]
[BlackFideId "1779656"]
[WhiteElo "1488"]
[BlackElo "1404"]

1. e4 {[%clk 00:03:02]} {[%emt 00:00:01]} e6 {[%clk 00:03:03]} {[%emt
00:00:02]} 2. e5 {[%clk 00:03:02]} {[%emt 00:00:02]} d5 {[%clk 00:03:03]}
{[%emt 00:00:02]} 3. d4 {[%clk 00:03:03]} {[%emt 00:00:02]} Ne7 {[%clk
00:03:00]} {[%emt 00:00:04]} 4. Bd2 {[%clk 00:03:00]} {[%emt 00:00:05]} Nbc6
{[%clk 00:03:00]} {[%emt 00:00:02]} 5. c4 {[%clk 00:02:58]} {[%emt 00:00:04]}
dxc4 {[%clk 00:02:58]} {[%emt 00:00:04]} 6. Bxc4 {[%clk 00:02:50]} {[%emt
00:00:09]} Nxd4 {[%clk 00:02:57]} {[%emt 00:00:04]} 7. Bc3 {[%clk 00:02:38]}
{[%emt 00:00:14]} Ndc6 {[%clk 00:02:51]} {[%emt 00:00:08]} 8. Qc2 {[%clk
00:02:19]} {[%emt 00:00:21]} Nf5 {[%clk 00:02:44]} {[%emt 00:00:10]} 9. Nf3
{[%clk 00:02:12]} {[%emt 00:00:08]} Bb4 {[%clk 00:02:36]} {[%emt 00:00:11]} 10.
O-O {[%clk 00:02:08]} {[%emt 00:00:05]} O-O {[%clk 00:02:34]} {[%emt 00:00:04]}
11. Rd1 {[%clk 00:01:48]} {[%emt 00:00:21]} Qe8 {[%clk 00:02:29]} {[%emt
00:00:08]} 12. Bb5 {[%clk 00:01:42]} {[%emt 00:00:08]} Qe7 {[%clk 00:02:22]}
{[%emt 00:00:09]} 13. Na3 {[%clk 00:01:14]} {[%emt 00:00:30]} Bxc3 {[%clk
00:02:08]} {[%emt 00:00:17]} 14. Qxc3 {[%clk 00:01:11]} {[%emt 00:00:04]} a6
{[%clk 00:01:57]} {[%emt 00:00:14]} 15. Bxc6 {[%clk 00:01:11]} {[%emt
00:00:02]} bxc6 {[%clk 00:01:57]} {[%emt 00:00:02]} 16. Qxc6 {[%clk 00:01:11]}
{[%emt 00:00:01]} Bd7 {[%clk 00:01:50]} {[%emt 00:00:09]} 17. Rxd7 {[%clk
00:01:07]} {[%emt 00:00:06]} Qg5 {[%clk 00:01:44]} {[%emt 00:00:07]} 18. Nxg5
{[%clk 00:00:58]} {[%emt 00:00:11]} Rab8 {[%clk 00:01:14]} {[%emt 00:00:32]} 19.
Nc4 {[%clk 00:00:57]} {[%emt 00:00:03]} Rb4 {[%clk 00:01:07]} {[%emt 00:00:10]}
20. Rxc7 {[%clk 00:00:53]} {[%emt 00:00:06]} Nd4 {[%clk 00:01:00]} {[%emt
00:00:09]} 21. Qd7 {[%clk 00:00:42]} {[%emt 00:00:13]} Ne2+ {[%clk 00:00:53]}
{[%emt 00:00:09]} 22. Kf1 {[%clk 00:00:38]} {[%emt 00:00:04]} h6 {[%clk
00:00:42]} {[%emt 00:00:16]} 23. Rc8 {[%clk 00:00:26]} {[%emt 00:00:14]} hxg5
{[%clk 00:00:22]} {[%emt 00:00:21]} 24. Rxf8+ {[%clk 00:00:24]} {[%emt
00:00:04]} Kh7 {[%clk 00:00:00]} {[%emt 00:00:23]} 25. Qd3+ {[%clk 00:00:24]}
{[%emt 00:00:05]} Nf4 {[%clk 00:00:00]} {[%emt 00:00:10]} 1-0

[Event "Dam-SM i Blixtschack"]
[Site "Goteborgs Schackcentrum, Vegatan 20, Gothenburg, Sweden"]
[Date "2024.12.07"]
[Round "6.3"]
[White "Olsson, Linn"]
[Black "Claesson, Margareta"]
[Result "0-1"]
[TimeControl "3 minutes + 2 seconds per move from move one"]
[WhiteFideId "1722514"]
[BlackFideId "1701703"]
[WhiteElo "1890"]
[BlackElo "1934"]

1. d4 {[%clk 00:03:03]} Nf6 {[%clk 00:03:02]} {[%emt 00:00:03]} 2. c4 {[%clk
00:03:03]} {[%emt 00:00:02]} e6 {[%clk 00:02:54]} {[%emt 00:00:09]} 3. Nc3
{[%clk 00:03:04]} {[%emt 00:00:02]} b6 {[%clk 00:02:50]} {[%emt 00:00:06]} 4.
Bg5 {[%clk 00:03:04]} {[%emt 00:00:01]} Bb7 {[%clk 00:02:48]} {[%emt 00:00:04]}
5. e3 {[%clk 00:03:02]} {[%emt 00:00:05]} Be7 {[%clk 00:02:47]} {[%emt
00:00:02]} 6. Nf3 {[%clk 00:03:03]} {[%emt 00:00:01]} O-O {[%clk 00:02:41]}
{[%emt 00:00:08]} 7. Bd3 {[%clk 00:03:04]} h6 {[%clk 00:02:33]} {[%emt
00:00:11]} 8. Bh4 {[%clk 00:03:05]} {[%emt 00:00:01]} d5 {[%emt 00:00:16]} 9.
O-O {[%clk 00:03:03]} {[%emt 00:00:02]} Ne4 {[%clk 00:02:12]} {[%emt 00:00:11]}
10. Bxe7 {[%clk 00:02:59]} {[%emt 00:00:06]} Qxe7 {[%clk 00:02:13]} 11. Rc1
{[%clk 00:02:31]} {[%emt 00:00:30]} c6 {[%clk 00:02:10]} {[%emt 00:00:06]} 12.
cxd5 {[%clk 00:02:25]} {[%emt 00:00:08]} exd5 {[%clk 00:02:03]} {[%emt
00:00:08]} 13. Ne5 {[%clk 00:02:16]} {[%emt 00:00:11]} Nd7 {[%clk 00:01:53]}
{[%emt 00:00:12]} 14. Nxd7 {[%clk 00:02:14]} {[%emt 00:00:04]} Qxd7 {[%clk
00:01:54]} {[%emt 00:00:02]} 15. Bxe4 {[%clk 00:02:11]} {[%emt 00:00:05]} dxe4
{[%clk 00:01:54]} {[%emt 00:00:02]} 16. Nxe4 {[%clk 00:02:12]} c5 {[%clk
00:01:49]} {[%emt 00:00:07]} 17. Ng3 {[%clk 00:02:08]} {[%emt 00:00:06]} cxd4
{[%clk 00:01:49]} {[%emt 00:00:03]} 18. exd4 {[%clk 00:02:08]} {[%emt
00:00:02]} Rad8 {[%clk 00:01:44]} {[%emt 00:00:06]} 19. Rc4 {[%clk 00:02:06]}
{[%emt 00:00:05]} Qd5 {[%clk 00:01:44]} {[%emt 00:00:02]} 20. Qf3 {[%clk
00:01:55]} {[%emt 00:00:13]} Qxc4 {[%clk 00:01:39]} {[%emt 00:00:07]} 21. Qxb7
{[%clk 00:01:56]} {[%emt 00:00:01]} Rxd4 {[%clk 00:01:35]} {[%emt 00:00:06]} 22.
Nf5 {[%clk 00:01:57]} {[%emt 00:00:01]} Rd2 {[%clk 00:01:23]} {[%emt 00:00:14]}
23. Qf3 {[%clk 00:01:42]} {[%emt 00:00:17]} Kh7 {[%clk 00:01:08]} {[%emt
00:00:18]} 24. Ne3 {[%clk 00:01:31]} {[%emt 00:00:12]} Qe6 {[%clk 00:01:05]}
{[%emt 00:00:04]} 25. b3 {[%clk 00:01:23]} {[%emt 00:00:12]} Rfd8 {[%clk
00:00:58]} {[%emt 00:00:08]} 26. h3 {[%clk 00:01:24]} Rxa2 {[%clk 00:00:58]}
{[%emt 00:00:02]} 27. Ng4 {[%clk 00:01:05]} {[%emt 00:00:21]} Re2 {[%clk
00:00:51]} {[%emt 00:00:09]} 28. Qc3 {[%clk 00:00:46]} {[%emt 00:00:21]} Kg8
{[%clk 00:00:38]} {[%emt 00:00:15]} 29. Qg3 {[%clk 00:00:44]} {[%emt 00:00:04]}
Qg6 {[%clk 00:00:24]} {[%emt 00:00:15]} 30. Qc3 {[%clk 00:00:37]} {[%emt
00:00:10]} Rde8 {[%clk 00:00:23]} {[%emt 00:00:03]} 31. Qf3 {[%clk 00:00:22]}
{[%emt 00:00:16]} Rb2 {[%clk 00:00:19]} {[%emt 00:00:06]} 32. Qc3 {[%clk
00:00:24]} Ree2 {[%emt 00:00:18]} 33. Ne5 {[%clk 00:00:12]} Qf6 {[%clk
00:00:14]} {[%emt 00:00:04]} 34. Qg3 {[%clk 00:00:09]} {[%emt 00:00:05]} Qxe5
{[%clk 00:00:14]} {[%emt 00:00:02]} 35. Qxe5 {[%clk 00:00:10]} Rxe5 {[%clk
00:00:15]} {[%emt 00:00:01]} 36. Rd1 {[%clk 00:00:12]} Rbe2 {[%clk 00:00:15]}
{[%emt 00:00:02]} 37. Rd8+ {[%clk 00:00:11]} {[%emt 00:00:03]} Kh7 {[%clk
00:00:15]} {[%emt 00:00:02]} 38. Rd1 {[%clk 00:00:13]} Re1+ {[%clk 00:00:15]}
{[%emt 00:00:02]} 39. Rxe1 {[%clk 00:00:14]} Rxe1+ {[%clk 00:00:17]} 40. Kh2
{[%clk 00:00:15]} Rb1 {[%clk 00:00:17]} 0-1

[Event "Dam-SM i Blixtschack"]
[Site "Goteborgs Schackcentrum, Vegatan 20, Gothenburg, Sweden"]
[Date "2024.12.07"]
[Round "9.1"]
[White "Isurina Mariano, Cristine Rose"]
[Black "Svensson, Paula"]
[Result "1-0"]
[TimeControl "3 minutes + 2 seconds per move from move one"]
[WhiteTitle "WIM"]
[WhiteFideId "5201071"]
[BlackFideId "1715186"]
[WhiteElo "1920"]
[BlackElo "1488"]

1. f4 {[%clk 00:03:03]} e6 {[%clk 00:02:50]} {[%emt 00:00:15]} 2. Nc3 {[%clk
00:03:03]} {[%emt 00:00:02]} d5 {[%clk 00:02:48]} {[%emt 00:00:04]} 3. d4
{[%clk 00:03:03]} {[%emt 00:00:02]} Bd6 {[%clk 00:02:45]} {[%emt 00:00:05]} 4.
Nf3 {[%clk 00:03:04]} {[%emt 00:00:01]} f6 {[%clk 00:02:34]} {[%emt 00:00:13]}
5. e3 {[%clk 00:03:02]} {[%emt 00:00:04]} Ne7 {[%clk 00:02:21]} {[%emt
00:00:15]} 6. Bd3 {[%clk 00:03:03]} {[%emt 00:00:02]} Ng6 {[%clk 00:02:09]}
{[%emt 00:00:14]} 7. O-O {[%clk 00:03:01]} {[%emt 00:00:04]} f5 {[%clk
00:02:05]} {[%emt 00:00:06]} 8. Ne5 {[%clk 00:03:02]} {[%emt 00:00:01]} Nxe5
{[%clk 00:02:01]} {[%emt 00:00:06]} 9. fxe5 {[%clk 00:03:02]} {[%emt 00:00:02]}
Be7 {[%clk 00:02:01]} {[%emt 00:00:02]} 10. Qh5+ {[%clk 00:03:03]} {[%emt
00:00:02]} g6 {[%clk 00:01:44]} {[%emt 00:00:19]} 11. Qd1 {[%clk 00:02:54]}
{[%emt 00:00:11]} Bd7 {[%clk 00:01:36]} {[%emt 00:00:10]} 12. Bd2 {[%clk
00:02:55]} {[%emt 00:00:01]} Bg5 {[%clk 00:01:27]} {[%emt 00:00:11]} 13. Ne2
{[%clk 00:02:53]} {[%emt 00:00:04]} a6 {[%clk 00:01:19]} {[%emt 00:00:11]} 14.
g3 {[%clk 00:02:54]} Nc6 {[%clk 00:01:08]} {[%emt 00:00:12]} 15. c4 {[%clk
00:02:55]} Ne7 {[%clk 00:01:03]} {[%emt 00:00:08]} 16. h4 {[%clk 00:02:54]}
{[%emt 00:00:03]} Bh6 {[%clk 00:01:00]} {[%emt 00:00:04]} 17. Nf4 {[%clk
00:02:54]} {[%emt 00:00:03]} g5 {[%clk 00:00:50]} {[%emt 00:00:12]} 18. Qh5+
{[%clk 00:02:52]} {[%emt 00:00:04]} Ng6 {[%clk 00:00:38]} {[%emt 00:00:14]} 19.
Nxg6 {[%clk 00:02:41]} {[%emt 00:00:13]} hxg6 {[%clk 00:00:35]} {[%emt
00:00:05]} 20. Qxg6+ {[%clk 00:02:41]} {[%emt 00:00:02]} Kf8 {[%clk 00:00:29]}
{[%emt 00:00:07]} 21. cxd5 {[%clk 00:02:42]} {[%emt 00:00:02]} Be8 {[%clk
00:00:28]} {[%emt 00:00:04]} 22. Qxe6 {[%clk 00:02:39]} {[%emt 00:00:05]} Bf7
{[%clk 00:00:12]} {[%emt 00:00:17]} 23. Rxf5 {[%clk 00:02:40]} {[%emt
00:00:01]} gxh4 {[%clk 00:00:10]} {[%emt 00:00:04]} 24. Qxf7# {[%clk 00:02:41]}
1-0

[Event "Dam-SM i Blixtschack"]
[Site "Goteborgs Schackcentrum, Vegatan 20, Gothenburg, Sweden"]
[Date "2024.12.07"]
[Round "6.4"]
[White "Nilsson, Elin"]
[Black "Nabbing, Johanna"]
[Result "0-1"]
[TimeControl "3 minutes + 2 seconds per move from move one"]
[WhiteFideId "1790749"]
[BlackFideId "1726340"]
[WhiteElo "1509"]
[BlackElo "1613"]

1. d4 {[%clk 00:03:01]} {[%emt 00:00:02]} Nf6 {[%clk 00:03:02]} {[%emt
00:00:02]} 2. e3 {[%clk 00:03:00]} {[%emt 00:00:02]} g6 {[%clk 00:03:03]}
{[%emt 00:00:01]} 3. c4 {[%clk 00:03:01]} {[%emt 00:00:03]} d6 {[%clk
00:03:03]} 4. Nf3 {[%clk 00:02:59]} {[%emt 00:00:04]} Bg7 {[%clk 00:03:04]}
{[%emt 00:00:02]} 5. Nc3 {[%clk 00:02:58]} {[%emt 00:00:02]} b6 {[%clk
00:02:56]} {[%emt 00:00:10]} 6. Bd2 {[%clk 00:02:52]} {[%emt 00:00:08]} Bb7
{[%clk 00:02:57]} {[%emt 00:00:01]} 7. Ng5 {[%clk 00:02:45]} {[%emt 00:00:09]}
O-O {[%clk 00:02:55]} {[%emt 00:00:04]} 8. e4 {[%clk 00:02:42]} {[%emt
00:00:04]} Nbd7 {[%clk 00:02:31]} {[%emt 00:00:26]} 9. d5 {[%clk 00:02:28]}
{[%emt 00:00:17]} Qe8 {[%clk 00:02:07]} {[%emt 00:00:26]} 10. Nb5 {[%clk
00:02:25]} {[%emt 00:00:05]} Qc8 {[%clk 00:01:44]} {[%emt 00:00:25]} 11. Be2
{[%clk 00:02:19]} {[%emt 00:00:08]} a6 {[%clk 00:01:45]} {[%emt 00:00:01]} 12.
Nd4 {[%clk 00:02:12]} {[%emt 00:00:09]} Nc5 {[%clk 00:01:25]} {[%emt 00:00:22]}
13. Bf3 {[%clk 00:02:03]} {[%emt 00:00:11]} e5 {[%clk 00:01:17]} {[%emt
00:00:10]} 14. Nde6 {[%clk 00:01:44]} {[%emt 00:00:21]} fxe6 {[%clk 00:01:13]}
{[%emt 00:00:05]} 15. Nxe6 {[%clk 00:01:44]} {[%emt 00:00:02]} Nxe6 {[%clk
00:01:13]} {[%emt 00:00:02]} 16. dxe6 {[%clk 00:01:43]} {[%emt 00:00:04]} Qxe6
{[%clk 00:01:13]} {[%emt 00:00:01]} 17. Bc3 {[%clk 00:01:43]} {[%emt 00:00:02]}
Nxe4 {[%clk 00:01:09]} {[%emt 00:00:06]} 18. O-O {[%clk 00:01:42]} {[%emt
00:00:04]} Nxc3 {[%clk 00:01:06]} {[%emt 00:00:04]} 19. bxc3 {[%clk 00:01:42]}
{[%emt 00:00:03]} Bxf3 {[%clk 00:01:06]} {[%emt 00:00:01]} 20. Qxf3 {[%clk
00:01:42]} {[%emt 00:00:01]} Rxf3 {[%clk 00:01:06]} {[%emt 00:00:02]} 21. Rab1
{[%clk 00:01:21]} {[%emt 00:00:23]} Rxc3 {[%clk 00:01:02]} {[%emt 00:00:06]} 22.
c5 {[%clk 00:01:22]} {[%emt 00:00:02]} Rxc5 {[%clk 00:00:52]} {[%emt 00:00:12]}
23. a4 {[%clk 00:01:21]} {[%emt 00:00:03]} Rf8 {[%clk 00:00:51]} {[%emt
00:00:03]} 24. h3 {[%clk 00:01:17]} {[%emt 00:00:06]} Qd5 {[%clk 00:00:48]}
{[%emt 00:00:05]} 25. Rfd1 {[%clk 00:01:14]} {[%emt 00:00:05]} Qc4 {[%clk
00:00:45]} {[%emt 00:00:05]} 26. g3 {[%clk 00:01:07]} {[%emt 00:00:09]} Qxa4
{[%clk 00:00:37]} {[%emt 00:00:10]} 27. Kg2 {[%clk 00:01:06]} {[%emt 00:00:02]}
Qe4+ {[%clk 00:00:37]} {[%emt 00:00:02]} 28. Kg1 {[%clk 00:01:05]} {[%emt
00:00:03]} Qf3 {[%clk 00:00:37]} {[%emt 00:00:02]} 29. Rdc1 {[%clk 00:01:03]}
{[%emt 00:00:05]} Qxf2+ {[%clk 00:00:37]} {[%emt 00:00:02]} 30. Kh1 {[%clk
00:01:01]} {[%emt 00:00:04]} Qf3+ {[%clk 00:00:36]} {[%emt 00:00:03]} 31. Kg1
{[%clk 00:01:00]} {[%emt 00:00:03]} Rxc1+ {[%clk 00:00:36]} {[%emt 00:00:01]}
32. Rxc1 {[%clk 00:01:00]} {[%emt 00:00:02]} e4 {[%clk 00:00:36]} {[%emt
00:00:02]} 33. Rf1 {[%clk 00:00:59]} {[%emt 00:00:03]} Bd4+ {[%clk 00:00:37]}
{[%emt 00:00:02]} 34. Kh2 {[%clk 00:00:49]} {[%emt 00:00:12]} Qxf1 {[%clk
00:00:37]} 35. h4 {[%clk 00:00:48]} {[%emt 00:00:03]} Rf2# {[%clk 00:00:37]}
{[%emt 00:00:02]} 0-1

[Event "Dam-SM i Blixtschack"]
[Site "Goteborgs Schackcentrum, Vegatan 20, Gothenburg, Sweden"]
[Date "2024.12.07"]
[Round "3.1"]
[White "Olsson, Linn"]
[Black "Isurina Mariano, Cristine Rose"]
[Result "0-1"]
[TimeControl "3 minutes + 2 seconds per move from move one"]
[BlackTitle "WIM"]
[WhiteFideId "1722514"]
[BlackFideId "5201071"]
[WhiteElo "1890"]
[BlackElo "1920"]

1. d4 {[%clk 00:03:03]} e6 {[%clk 00:03:03]} {[%emt 00:00:02]} 2. c4 {[%clk
00:03:04]} b6 {[%clk 00:03:04]} 3. Nf3 {[%clk 00:03:04]} {[%emt 00:00:01]} Bb7
{[%clk 00:03:06]} 4. Bf4 {[%clk 00:03:02]} {[%emt 00:00:05]} Bb4+ {[%clk
00:03:06]} {[%emt 00:00:02]} 5. Nc3 {[%clk 00:03:02]} {[%emt 00:00:02]} f5
{[%clk 00:03:07]} 6. e3 {[%clk 00:03:01]} {[%emt 00:00:03]} Nf6 {[%clk
00:03:07]} {[%emt 00:00:02]} 7. Bd3 {[%clk 00:03:02]} {[%emt 00:00:01]} d6
{[%clk 00:03:07]} {[%emt 00:00:02]} 8. O-O {[%clk 00:03:02]} {[%emt 00:00:02]}
Bxc3 {[%clk 00:03:09]} 9. bxc3 {[%clk 00:03:03]} {[%emt 00:00:01]} O-O {[%clk
00:03:09]} {[%emt 00:00:01]} 10. Bg5 {[%clk 00:02:58]} {[%emt 00:00:07]} Qe8
{[%clk 00:03:09]} {[%emt 00:00:02]} 11. Bc2 {[%clk 00:02:28]} {[%emt 00:00:33]}
Nbd7 {[%clk 00:03:07]} {[%emt 00:00:03]} 12. d5 {[%clk 00:02:21]} {[%emt
00:00:09]} Ne4 {[%clk 00:02:59]} {[%emt 00:00:11]} 13. Bxe4 {[%clk 00:01:59]}
{[%emt 00:00:24]} fxe4 {[%clk 00:03:00]} {[%emt 00:00:01]} 14. Nd2 {[%clk
00:02:00]} exd5 {[%clk 00:03:01]} 15. cxd5 {[%clk 00:01:54]} {[%emt 00:00:08]}
Bxd5 {[%clk 00:03:02]} 16. c4 {[%clk 00:01:53]} {[%emt 00:00:03]} Bb7 {[%clk
00:03:03]} {[%emt 00:00:01]} 17. Qg4 {[%clk 00:01:45]} {[%emt 00:00:10]} Nc5
{[%clk 00:02:54]} {[%emt 00:00:11]} 18. Rad1 {[%clk 00:01:37]} {[%emt
00:00:10]} Qg6 {[%clk 00:02:52]} {[%emt 00:00:03]} 19. Qg3 {[%clk 00:01:35]}
{[%emt 00:00:04]} Rae8 {[%clk 00:02:46]} {[%emt 00:00:08]} 20. Nb3 {[%clk
00:01:31]} {[%emt 00:00:07]} Nd3 {[%clk 00:02:38]} {[%emt 00:00:10]} 21. Nd4
{[%clk 00:01:18]} {[%emt 00:00:14]} Ba6 {[%clk 00:02:27]} {[%emt 00:00:13]} 22.
Nc6 {[%clk 00:01:16]} {[%emt 00:00:05]} Rf7 {[%clk 00:02:19]} {[%emt 00:00:09]}
23. Qh4 {[%clk 00:00:58]} {[%emt 00:00:20]} Kh8 {[%clk 00:01:49]} {[%emt
00:00:32]} 24. Nd8 {[%clk 00:00:56]} {[%emt 00:00:04]} Rf5 {[%clk 00:01:45]}
{[%emt 00:00:05]} 25. Bf4 {[%clk 00:00:43]} {[%emt 00:00:15]} Nxf4 {[%clk
00:01:45]} {[%emt 00:00:02]} 26. exf4 {[%clk 00:00:45]} Bxc4 {[%clk 00:01:46]}
27. Rfe1 {[%clk 00:00:39]} {[%emt 00:00:08]} Rh5 {[%clk 00:01:40]} {[%emt
00:00:07]} 28. Qg3 {[%clk 00:00:18]} {[%emt 00:00:23]} Qxg3 {[%clk 00:01:40]}
{[%emt 00:00:02]} 29. fxg3 {[%emt 00:00:01]} Rxd8 30. g4 {[%clk 00:00:17]}
{[%emt 00:00:02]} Rd5 {[%clk 00:01:39]} {[%emt 00:00:02]} 31. Rxd5 {[%clk
00:00:14]} {[%emt 00:00:05]} Bxd5 {[%clk 00:01:41]} 32. f5 {[%clk 00:00:15]}
{[%emt 00:00:02]} Kg8 {[%clk 00:01:41]} 33. Rd1 {[%clk 00:00:15]} {[%emt
00:00:02]} c6 {[%clk 00:01:43]} 34. Rc1 {[%clk 00:00:17]} Kf7 {[%clk 00:01:44]}
35. Rc3 {[%clk 00:00:18]} c5 {[%clk 00:01:44]} {[%emt 00:00:01]} 36. Kf2 {[%clk
00:00:19]} Kf6 {[%clk 00:01:45]} 37. h3 {[%clk 00:00:19]} {[%emt 00:00:03]}
Bxa2 {[%clk 00:01:46]} 38. Ra3 {[%clk 00:00:19]} {[%emt 00:00:02]} Bd5 {[%clk
00:01:45]} {[%emt 00:00:03]} 39. Rxa7 {[%clk 00:00:20]} {[%emt 00:00:02]} Ra8
{[%clk 00:01:46]} 40. Rd7 {[%clk 00:00:09]} {[%emt 00:00:14]} Ra2+ {[%clk
00:01:47]} 41. Ke3 {[%clk 00:00:09]} {[%emt 00:00:02]} Ra3+ {[%clk 00:01:46]}
{[%emt 00:00:03]} 42. Kf2 {[%clk 00:00:10]} {[%emt 00:00:01]} b5 {[%clk
00:01:32]} {[%emt 00:00:17]} 43. Rxd6+ {[%clk 00:00:10]} {[%emt 00:00:01]} Ke5
{[%clk 00:01:33]} 44. Rd7 {[%clk 00:00:09]} {[%emt 00:00:03]} e3+ {[%clk
00:01:27]} {[%emt 00:00:08]} 45. Ke2 {[%clk 00:00:10]} {[%emt 00:00:01]} Bc4+
{[%clk 00:01:22]} {[%emt 00:00:07]} 0-1

[Event "Dam-SM i Blixtschack"]
[Site "Goteborgs Schackcentrum, Vegatan 20, Gothenburg, Sweden"]
[Date "2024.12.07"]
[Round "6.5"]
[White "Opdendries, Zoe"]
[Black "Svensson, Paula"]
[Result "0-1"]
[TimeControl "3 minutes + 2 seconds per move from move one"]
[WhiteFideId "1739506"]
[BlackFideId "1715186"]
[WhiteElo "1466"]
[BlackElo "1488"]

1. d4 {[%clk 00:03:02]} {[%emt 00:00:01]} d5 {[%clk 00:03:02]} {[%emt
00:00:02]} 2. c4 {[%clk 00:03:02]} {[%emt 00:00:02]} Nf6 {[%clk 00:02:59]}
{[%emt 00:00:06]} 3. Nf3 {[%clk 00:03:02]} Nc6 {[%clk 00:02:55]} {[%emt
00:00:07]} 4. g3 {[%clk 00:02:59]} {[%emt 00:00:05]} Bg4 {[%clk 00:02:53]}
{[%emt 00:00:04]} 5. Bg2 {[%clk 00:02:59]} {[%emt 00:00:02]} e6 {[%clk
00:02:44]} {[%emt 00:00:11]} 6. O-O {[%clk 00:02:51]} {[%emt 00:00:10]} Qd7
{[%clk 00:02:44]} {[%emt 00:00:02]} 7. Re1 {[%clk 00:02:46]} {[%emt 00:00:06]}
b6 {[%clk 00:02:38]} {[%emt 00:00:09]} 8. Ne5 {[%clk 00:02:28]} {[%emt
00:00:19]} Nxe5 {[%clk 00:02:26]} {[%emt 00:00:14]} 9. dxe5 {[%clk 00:02:23]}
{[%emt 00:00:06]} Nh5 {[%clk 00:02:11]} {[%emt 00:00:17]} 10. cxd5 {[%clk
00:02:04]} {[%emt 00:00:22]} exd5 {[%clk 00:02:02]} {[%emt 00:00:11]} 11. Bxd5
{[%clk 00:01:44]} {[%emt 00:00:22]} O-O-O {[%clk 00:01:46]} {[%emt 00:00:19]}
12. Nc3 {[%clk 00:01:25]} {[%emt 00:00:21]} Bb4 {[%clk 00:01:44]} {[%emt
00:00:04]} 13. Qb3 {[%clk 00:00:56]} {[%emt 00:00:31]} Bxc3 {[%clk 00:01:35]}
{[%emt 00:00:11]} 14. bxc3 {[%clk 00:00:51]} {[%emt 00:00:07]} Qxd5 {[%clk
00:01:33]} {[%emt 00:00:04]} 15. Qxd5 {[%clk 00:00:48]} {[%emt 00:00:05]} Rxd5
{[%clk 00:01:32]} {[%emt 00:00:02]} 16. Bf4 {[%clk 00:00:44]} {[%emt 00:00:07]}
Rhd8 {[%clk 00:01:22]} {[%emt 00:00:13]} 17. f3 {[%clk 00:00:40]} {[%emt
00:00:05]} Bh3 {[%clk 00:01:15]} {[%emt 00:00:09]} 18. c4 {[%clk 00:00:29]}
{[%emt 00:00:14]} Rd2 {[%clk 00:01:06]} {[%emt 00:00:10]} 19. a4 {[%clk
00:00:26]} {[%emt 00:00:05]} Rc2 {[%clk 00:01:02]} {[%emt 00:00:06]} 20. Rac1
{[%clk 00:00:20]} {[%emt 00:00:08]} Rxc1 {[%clk 00:00:56]} {[%emt 00:00:08]} 21.
Rxc1 {[%clk 00:00:20]} {[%emt 00:00:02]} Nxf4 {[%clk 00:00:55]} {[%emt
00:00:03]} 22. gxf4 {[%clk 00:00:21]} {[%emt 00:00:01]} Bf5 {[%clk 00:00:52]}
{[%emt 00:00:05]} 23. e4 {[%clk 00:00:17]} {[%emt 00:00:06]} Bh3 {[%clk
00:00:44]} {[%emt 00:00:10]} 24. c5 {[%clk 00:00:12]} {[%emt 00:00:07]} bxc5
{[%clk 00:00:42]} {[%emt 00:00:05]} 25. Rxc5 {[%clk 00:00:11]} {[%emt
00:00:03]} Rd1+ {[%clk 00:00:39]} {[%emt 00:00:04]} 26. Kf2 {[%clk 00:00:11]}
{[%emt 00:00:01]} Rd2+ {[%clk 00:00:31]} {[%emt 00:00:06]} 27. Ke3 {[%clk
00:00:08]} {[%emt 00:00:10]} Rxh2 {[%clk 00:00:28]} {[%emt 00:00:04]} 28. e6
{[%clk 00:00:05]} {[%emt 00:00:06]} fxe6 {[%clk 00:00:28]} {[%emt 00:00:02]} 29.
Rh5 {[%clk 00:00:00]} 0-1